fUSD/lending_fUSD_20250623
["ID","MTS","AMOUNT","RATE_DAILY","PERIOD"]
[367077409,1750650657022,-490.0,0.0003315,7]
[367077410,1750650657032,-941.88,0.0003315,7]
[367077411,1750650657042,-490.0,0.0003315,7]
[367077412,1750650657051,-494.72,0.0003315,7]
[367077413,1750650657060,-587.03,0.0003315,7]
[367077414,1750650657070,-490.0,0.0003315,7]
[367077415,1750650657079,-492.86227044,0.0003315,7]
[367077416,1750650657088,-490.0,0.0003315,7]
[367077417,1750650657098,-968.29,0.0003315,7]
[367077418,1750650657108,-683.58,0.0003315,7]
[367077419,1750650657118,-632.94940875,0.0003315,7]
[367077420,1750650657127,-1929.61,0.0003315,7]
[367077421,1750650657137,-565.72,0.0003315,7]
[367077422,1750650657147,-490.0,0.0003315,7]
[367077423,1750650657156,-503.46150839,0.0003315,7]
[367077424,1750650657166,-1966.26,0.0003315,7]
[367077425,1750650657176,-622.52,0.0003315,7]
[367077426,1750650657185,-1930.4,0.0003315,7]
[367077427,1750650657195,-490.0,0.0003315,7]
[367077428,1750650657205,-490.0,0.0003315,7]
[367077429,1750650657214,-1634.13,0.0003315,7]
[367077430,1750650657224,-2632.94,0.0003315,7]
[367077431,1750650657233,-490.0,0.0003315,7]
[367077432,1750650657242,-2623.49,0.0003315,7]
[367077433,1750650657252,-1308.31,0.0003315,7]
[367077434,1750650657261,-490.0,0.0003315,7]
[367077435,1750650657275,-490.0,0.0003315,7]
[367077436,1750650657285,-490.0,0.0003315,7]
[367077437,1750650657295,-490.0,0.0003315,7]
[367077438,1750650657304,-1277.14,0.0003315,7]
[367077439,1750650657315,-490.0,0.0003315,7]
[367077440,1750650657325,-490.0,0.0003315,7]
[367077441,1750650657335,-490.0,0.0003315,7]
[367077442,1750650657345,-490.0,0.0003315,7]
[367077443,1750650657355,-490.0,0.0003315,7]
[367077444,1750650657364,-490.0,0.0003315,7]
[367077445,1750650657374,-641.94,0.0003315,7]
[367077446,1750650657383,-490.0,0.0003315,7]
[367077447,1750650657393,-490.0,0.0003315,7]
[367077448,1750650657403,-588.0,0.0003315,7]
[367077449,1750650657413,-490.0,0.0003315,7]
[367077450,1750650657423,-1422.29,0.0003315,7]
[367077451,1750650657433,-490.0,0.0003315,7]
[367077452,1750650657444,-894.5,0.0003315,7]
[367077453,1750650657454,-213.12774622,0.0003315,7]
[367077454,1750650657464,-496.5,0.0003315,7]
[367077455,1750650657474,-662.11,0.0003315,7]
[367077456,1750650657484,-2333.44,0.0003315,7]
[367077457,1750650657495,-243.97615786,0.0003315,7]
[367077458,1750650657504,-490.0,0.0003315,7]
[367077459,1750650657513,-490.0,0.0003315,7]
[367077460,1750650657523,-490.0,0.0003315,7]
[367077461,1750650657534,-548.37,0.0003315,7]
[367077462,1750650657543,-1909.46,0.0003315,7]
[367077463,1750650657554,-490.0,0.0003315,7]
[367077464,1750650657564,-490.0,0.0003315,7]
[367077465,1750650657574,-490.0,0.0003315,7]
[367077466,1750650657585,-490.0,0.0003315,7]
[367077467,1750650657594,-214.00193819,0.0003315,7]
[367077468,1750650657604,-490.0,0.0003315,7]
[367077469,1750650657614,-653.89,0.0003315,7]
[367077470,1750650657623,-490.0,0.0003315,7]
[367077471,1750650657632,-490.0,0.0003315,7]
[367077472,1750650657642,-984.48,0.0003315,7]
[367077473,1750650657651,-502.97,0.0003315,7]
[367077474,1750650657661,-1824.91,0.0003315,7]
[367077475,1750650657670,-490.0,0.0003315,7]
[367077476,1750650657679,-180.0,0.0003315,7]
[367077477,1750650657689,-490.0,0.0003315,7]
[367077478,1750650657698,-750.32,0.0003315,7]
[367077479,1750650657707,-221.38341478,0.0003315,7]
[367077480,1750650657717,-490.0,0.0003315,7]
[367077481,1750650657726,-490.0,0.0003315,7]
[367077482,1750650657736,-490.0,0.0003315,7]
[367077483,1750650657747,-490.0,0.0003315,7]
[367077484,1750650657756,-493.74,0.0003315,7]
[367077485,1750650657766,-490.0,0.0003315,7]
[367077486,1750650657775,-490.0,0.0003315,7]
[367077487,1750650657785,-2054.85,0.0003315,7]
[367077488,1750650657794,-490.0,0.0003315,7]
[367077489,1750650657803,-750.89,0.0003315,7]
[367077490,1750650657813,-490.0,0.0003315,7]
[367077491,1750650657822,-490.0,0.0003315,7]
[367077492,1750650657833,-584.01,0.0003315,7]
[367077493,1750650657844,-1690.29,0.0003315,7]
[367077494,1750650657853,-1280.13,0.0003315,7]
[367077495,1750650657863,-765.94,0.0003315,7]
[367077496,1750650657872,-494.63579919,0.0003315,7]
[367077497,1750650657882,-490.0,0.0003315,7]
[367077498,1750650657891,-490.0,0.0003315,7]
[367077499,1750650657901,-490.0,0.0003315,7]
[367077500,1750650657910,-490.0,0.0003315,7]
[367077501,1750650657920,-490.0,0.0003315,7]
[367077502,1750650657930,-457.32611239,0.0003315,7]
[367077503,1750650657939,-1656.04,0.0003315,7]
[367077504,1750650657948,-490.0,0.0003315,7]
[367077505,1750650657957,-1040.91,0.0003315,7]
[367077506,1750650657966,-490.0,0.0003315,7]
[367077507,1750650657975,-499.05785946,0.0003315,7]
[367077508,1750650657985,-714.08,0.0003315,7]
[367077509,1750650657994,-490.0,0.0003315,7]
[367077510,1750650658003,-491.43280661,0.0003315,7]
[367077511,1750650658012,-2003.57,0.0003315,7]
[367077512,1750650658022,-644.11,0.0003315,7]
[367077513,1750650658031,-490.0,0.0003315,7]
[367077514,1750650658040,-492.6,0.0003315,7]
[367077515,1750650658049,-1546.57,0.0003315,7]
[367077516,1750650658059,-721.52,0.0003315,7]
[367077517,1750650658068,-1155.71,0.0003315,7]
[367077518,1750650658077,-788.69,0.0003315,7]
[367077519,1750650658086,-490.0,0.0003315,7]
[367077520,1750650658095,-490.0,0.0003315,7]
[367077521,1750650658104,-713.3,0.0003315,7]
[367077522,1750650658113,-490.0,0.0003315,7]
[367077523,1750650658122,-490.0,0.0003315,7]
[367077524,1750650658131,-577.72,0.0003315,7]
[367077525,1750650658140,-490.0,0.0003315,7]
[367077526,1750650658150,-925.9,0.0003315,7]
[367077527,1750650658159,-490.0,0.0003315,7]
[367077528,1750650658168,-909.81,0.0003315,7]
[367077529,1750650658178,-490.0,0.0003315,7]
[367077530,1750650658187,-977.02,0.0003315,7]
[367077531,1750650658197,-1543.34,0.0003315,7]
[367077532,1750650658206,-490.0,0.0003315,7]
[367077533,1750650658216,-468.08,0.0003315,7]
[367077534,1750650658225,-490.0,0.0003315,7]
[367077535,1750650658234,-3229.77,0.0003315,7]
[367077536,1750650658243,-529.47,0.0003315,7]
[367077537,1750650658253,-490.0,0.0003315,7]
[367077538,1750650658262,-490.0,0.0003315,7]
[367077539,1750650658273,-1727.46,0.0003315,7]
[367077540,1750650658284,-490.0,0.0003315,7]
[367077541,1750650658294,-490.0,0.0003315,7]
[367077542,1750650658303,-1783.65,0.0003315,7]
[367077543,1750650658313,-979.63,0.0003315,7]
[367077544,1750650658323,-490.0,0.0003315,7]
[367077545,1750650658332,-490.0,0.0003315,7]
[367077546,1750650658341,-490.0,0.0003315,7]
[367077547,1750650658354,-4685.38,0.0003315,7]
[367077548,1750650658364,-1033.56,0.0003315,7]
[367077549,1750650658374,-490.0,0.0003315,7]
[367077550,1750650658384,-490.0,0.0003315,7]
[367077551,1750650658393,-490.0,0.0003315,7]
[367077552,1750650658403,-490.0,0.0003315,7]
[367077553,1750650658412,-490.0,0.0003315,7]
[367077554,1750650658421,-490.0,0.0003315,7]
[367077555,1750650658431,-490.0,0.0003315,7]
[367077556,1750650658441,-490.0,0.0003315,7]
[367077557,1750650658450,-1034.74,0.0003315,7]
[367077558,1750650658459,-490.0,0.0003315,7]
[367077559,1750650658468,-1433.11,0.0003315,7]
[367077560,1750650658477,-490.0,0.0003315,7]
[367077561,1750650658486,-953.11,0.0003315,7]
[367077562,1750650658496,-599.26,0.0003315,7]
[367077563,1750650658505,-490.0,0.0003315,7]
[367077564,1750650658515,-490.0,0.0003315,7]
[367077565,1750650658525,-847.2,0.0003315,7]
[367077566,1750650658535,-348.13174841,0.0003315,7]
[367077567,1750650658545,-681.09,0.0003315,7]
[367077568,1750650658555,-494.36190764,0.0003315,7]
[367077569,1750650658565,-639.08,0.0003315,7]
[367077570,1750650658575,-1810.29,0.0003315,7]
[367077571,1750650658587,-885.05,0.0003315,7]
[367077572,1750650658597,-490.0,0.0003315,7]
[367077573,1750650658608,-179.88604116,0.0003315,7]
[367077574,1750650658703,-490.0,0.0003315,7]
[367077575,1750650658713,-528.60492852,0.0003315,7]
[367077576,1750650658722,-1158.88,0.0003315,7]
[367077577,1750650658732,-1201.55,0.0003315,7]
[367077578,1750650658743,-1835.19,0.0003315,7]
[367077579,1750650658753,-490.0,0.0003315,7]
[367077580,1750650658762,-1615.73,0.0003315,7]
[367077581,1750650658772,-1057.42,0.0003315,7]
[367077582,1750650658781,-490.0,0.0003315,7]
[367077583,1750650658790,-490.0,0.0003315,7]
[367077584,1750650658799,-490.0,0.0003315,7]
[367077585,1750650658808,-340.542459,0.0003315,7]
[367077586,1750650658817,-1778.18,0.0003315,7]
[367077587,1750650658826,-359.12065816,0.0003315,7]
[367077588,1750650658835,-490.0,0.0003315,7]
[367077589,1750650658844,-490.0,0.0003315,7]
[367077590,1750650658853,-634.08574993,0.0003315,7]
[367077591,1750650658863,-490.0,0.0003315,7]
[367077592,1750650658872,-490.0,0.0003315,7]
[367077593,1750650658881,-497.35,0.0003315,7]
[367077594,1750650658890,-1831.59,0.0003315,7]
[367077595,1750650658900,-490.0,0.0003315,7]
[367077596,1750650658909,-282.21160381,0.0003315,7]
[367077597,1750650658918,-490.0,0.0003315,7]
[367077598,1750650658927,-490.0,0.0003315,7]
[367077599,1750650658938,-1940.51,0.0003315,7]
[367077600,1750650658947,-490.0,0.0003315,7]
[367077601,1750650658956,-561.3,0.0003315,7]
[367077602,1750650658965,-490.0,0.0003315,7]
[367077603,1750650658973,-490.0,0.0003315,7]
[367077604,1750650658982,-490.0,0.0003315,7]
[367077605,1750650658991,-636.12,0.0003315,7]
[367077606,1750650659001,-490.0,0.0003315,7]
[367077607,1750650659010,-2178.81,0.0003315,7]
[367077608,1750650659021,-541.69,0.0003315,7]
[367077609,1750650659031,-1351.27,0.0003315,7]
[367077610,1750650659040,-490.0,0.0003315,7]
[367077611,1750650659049,-490.0,0.0003315,7]
[367077612,1750650659057,-490.0,0.0003315,7]
[367077613,1750650659067,-1569.35,0.0003315,7]
[367077614,1750650659075,-490.0,0.0003315,7]
[367077615,1750650659084,-490.0,0.0003315,7]
[367077616,1750650659093,-490.0,0.0003315,7]
[367077617,1750650659102,-490.0,0.0003315,7]
[367077618,1750650659111,-490.0,0.0003315,7]
[367077619,1750650659120,-490.0,0.0003315,7]
[367077620,1750650659129,-700.15,0.0003315,7]
[367077621,1750650659138,-490.0,0.0003315,7]
[367077622,1750650659148,-1417.73,0.0003315,7]
[367077623,1750650659158,-1318.64,0.0003315,7]
[367077624,1750650659168,-1452.43,0.0003315,7]
[367077625,1750650659177,-490.0,0.0003315,7]
[367077626,1750650659187,-490.0,0.0003315,7]
[367077627,1750650659197,-2428.16,0.0003315,7]
[367077628,1750650659207,-1996.04,0.0003315,7]
[367077629,1750650659216,-797.11,0.0003315,7]
[367077630,1750650659225,-490.0,0.0003315,7]
[367077631,1750650659235,-846.34,0.0003315,7]
[367077632,1750650659245,-809.54,0.0003315,7]
[367077633,1750650659254,-808.71,0.0003315,7]
[367077634,1750650659264,-2825.91,0.0003315,7]
[367077635,1750650659282,-580.16,0.0003315,7]
[367077636,1750650659302,-490.0,0.0003315,7]
[367077637,1750650659318,-985.03,0.0003315,7]
[367077638,1750650659327,-515.53720027,0.0003315,7]
[367077639,1750650659338,-1081.04,0.0003315,7]
[367077640,1750650659348,-1710.37,0.0003315,7]
[367077641,1750650659358,-490.0,0.0003315,7]
[367077642,1750650659368,-1897.23,0.0003315,7]
[367077643,1750650659378,-2427.23,0.0003315,7]
[367077644,1750650659388,-490.0,0.0003315,7]
[367077645,1750650659399,-1022.88,0.0003315,7]
[367077646,1750650659409,-10970.09,0.0003315,7]
[367077647,1750650659419,-731.88,0.0003315,7]
[367077648,1750650659429,-284.80056714,0.0003315,7]
[367077649,1750650659439,-589.1,0.0003315,7]
[367077650,1750650659448,-1429.6,0.0003315,7]
[367077651,1750650659458,-984.31,0.0003315,7]
[367077652,1750650659467,-490.0,0.0003315,2]
[367077653,1750650659476,-1829.73,0.0003315,7]
[367077654,1750650659486,-591.91,0.0003315,7]
[367077655,1750650659495,-1118.26,0.0003315,7]
[367077656,1750650659505,-490.0,0.0003315,7]
[367077657,1750650659515,-490.0,0.0003315,7]
[367077658,1750650659524,-1190.7,0.0003315,7]
[367077659,1750650659534,-1880.72,0.0003315,7]
[367077660,1750650659544,-490.0,0.0003315,7]
[367077661,1750650659553,-490.0,0.0003315,7]
[367077662,1750650659563,-1801.18,0.0003315,7]
[367077663,1750650659574,-492.74967002,0.0003315,7]
[367077664,1750650659584,-586.31,0.0003315,7]
[367077665,1750650659593,-609.17,0.0003315,7]
[367077666,1750650659603,-490.0,0.0003315,7]
[367077667,1750650659613,-490.0,0.0003315,7]
[367077668,1750650659623,-356.50857774,0.0003315,7]
[367077669,1750650659632,-490.0,0.0003315,7]
[367077670,1750650659642,-490.0,0.0003315,7]
[367077671,1750650659651,-253.54489225,0.0003315,7]
[367077672,1750650659661,-2309.87975097,0.0003315,7]
[367077673,1750650660294,-1987.206322,0.00032866,7]
[367077674,1750650660307,-1075.44024903,0.0003315,7]
[367077675,1750650660326,-119.64730522,0.0003315,7]
[367077676,1750650660972,-947.72946,0.00032876,7]
[367077677,1750650660985,-1039.476862,0.00032876,7]
[367077678,1750650660994,-1484.6,0.00032876,7]
[367077679,1750650661003,-1987.206322,0.00032876,7]
[367077680,1750650661013,-1987.206322,0.00032876,7]
[367077681,1750650661022,-1987.206322,0.00032876,7]
[367077682,1750650661032,-373.30141837,0.00032876,7]
[367077683,1750650661041,-795.09025062,0.00032876,7]
[367077684,1750650662413,-3.66306592,0.00032876,7]
[367077685,1750650663088,-1987.206322,0.00032865,7]
[367077686,1750650663098,-1694.29724821,0.00032866,7]
[367077687,1750650663111,-292.90907379,0.00032866,7]
[367077688,1750650663122,-79.37525579,0.00032876,7]
[367077689,1750650663162,-500.0,0.00032876,7]
[367077690,1750650665005,-204.0,0.00023665,2]
[367077691,1750650665015,-247.23409272,0.0002708,2]
[367077692,1750650665027,-252.76590728,0.0002708,2]
[367077693,1750650665037,-465.03681399,0.0002708,2]
[367077694,1750650665046,-500.0,0.0002708,2]
[367077695,1750650665055,-500.0,0.0002708,2]
[367077696,1750650665064,-500.0,0.0002708,2]
[367077697,1750650665074,-500.0,0.0002708,2]
[367077698,1750650665083,-500.0,0.0002708,2]
[367077699,1750650665092,-500.0,0.0002708,2]
[367077700,1750650665102,-500.0,0.0002708,2]
[367077701,1750650665111,-500.0,0.0002708,2]
[367077702,1750650665121,-500.0,0.0002708,2]
[367077703,1750650665131,-204.0,0.00029721,11]
[367077704,1750650665140,-292.992433,0.00032865,7]
[367077705,1750650665150,-74.1509939,0.00032876,7]
[367077725,1750651831946,-204.0,0.00020665,2]
[367077726,1750651831955,-201.0,0.00020665,2]
[367077727,1750651831965,-202.99998,0.00020665,2]
[367077728,1750651831974,-204.0,0.00028532,13]
[367077729,1750651831983,-156.48556386,0.00028931,2]
[367077730,1750651831995,-93.51443614,0.00028931,2]
[367077731,1750651832005,-164.0,0.0003,14]
[367077732,1750651832015,-164.0,0.00030411,14]
[367077733,1750651832024,-170.09002,0.00031498,2]
[367077734,1750651832035,-79.90998,0.00031498,2]
[367077735,1750651832044,-715.71100734,0.00031613,3]
[367077736,1750651832062,-884.28899266,0.00031613,3]
[367077737,1750651832071,-6663.61481041,0.00031614,2]
[367077738,1750651832095,-751.77518959,0.00031614,2]
[367077739,1750651832105,-164.0,0.00031644,14]
[367077740,1750651832114,-202.64,0.00031698,2]
[367077741,1750651832124,-165.97,0.00031719,80]
[367077742,1750651832134,-150.0,0.00031832,2]
[367077743,1750651832145,-1000.0,0.00031869,2]
[367077744,1750651832155,-239.24,0.0003188,120]
[367077745,1750651832164,-189.22,0.0003189,2]
[367077746,1750651832173,-196.463,0.0003189,30]
[367077747,1750651832182,-1929.01250183,0.00031907,2]
[367077748,1750651832201,-416.34654294,0.00031907,2]
[367077773,1750651837846,-413.54924071,0.00031907,2]
[367077774,1750651837858,-300.0,0.00031907,2]
[367077775,1750651838058,-5191.0,0.00031907,2]
[367077776,1750651838111,-94573.09171452,0.00031907,2]
[367077777,1750651838121,-2000.0,0.00032,32]
[367077778,1750651838131,-834.59255148,0.00032143,2]
[367077779,1750651838140,-748.23238288,0.00032376,2]
[367077780,1750651838151,-200.0,0.000324,11]
[367077781,1750651838161,-501.0,0.000325,120]
[367077783,1750651838170,-513.0,0.000325,120]
[367077785,1750651838179,-2624.15,0.000325,32]
[367077787,1750651838189,-200.0,0.000325,11]
[367077789,1750651838199,-500.0,0.000325,11]
[367077791,1750651838208,-2470.71816118,0.00032576,4]
[367077793,1750651838218,-2000.0,0.000326,60]
[367077795,1750651838228,-500.0,0.000326,11]
[367077797,1750651838238,-800.0,0.000326,11]
[367077799,1750651838247,-748.23238288,0.00032661,2]
[367077801,1750651838257,-700.0,0.000327,11]
[367077803,1750651838267,-1000.0,0.000327,11]
[367077805,1750651838276,-172.96076288,0.00032753,2]
[367077807,1750651838285,-2643.09893888,0.00032765,2]
[367077809,1750651838295,-162.49570105,0.00032766,2]
[367077811,1750651838304,-426.42331314,0.00032766,15]
[367077813,1750651838314,-412.67280065,0.00032766,6]
[367077815,1750651838323,-412.67280063,0.00032771,6]
[367077817,1750651838333,-247.26136864,0.00032776,2]
[367077819,1750651838342,-412.67280063,0.00032776,6]
[367077821,1750651838352,-2779.23,0.000328,3]
[367077823,1750651838361,-1000.0,0.000328,11]
[367077825,1750651838370,-1300.0,0.000328,11]
[367077827,1750651838380,-449.66454114,0.0003282,2]
[367077829,1750651838389,-2643.09893881,0.00032827,2]
[367077831,1750651838399,-2470.66,0.0003285,4]
[367077833,1750651838409,-150.82,0.00032856,2]
[367077835,1750651838418,-150.82,0.00032856,2]
[367077837,1750651838428,-300.0,0.00032865,10]
[367077839,1750651838437,-666.0,0.00032865,10]
[367077841,1750651838447,-300.0,0.00032865,10]
[367077843,1750651838456,-666.0,0.00032865,10]
[367077845,1750651838466,-500.0,0.00032865,2]
[367077847,1750651838476,-607.22631267,0.00032865,2]
[367077849,1750651838485,-606.24588516,0.00032865,2]
[367077851,1750651838494,-500.0,0.00032865,2]
[367077853,1750651838504,-500.0,0.00032865,2]
[367077855,1750651838513,-261.06804143,0.00032865,2]
[367077857,1750651838523,-500.0,0.00032865,2]
[367077859,1750651838533,-470.71910952,0.00032865,2]
[367077861,1750651838542,-500.0,0.00032865,2]
[367077863,1750651838552,-500.0,0.00032865,2]
[367077865,1750651838561,-500.0,0.00032865,2]
[367077867,1750651838571,-500.0,0.00032865,2]
[367077869,1750651838581,-500.0,0.00032865,2]
[367077871,1750651838590,-500.0,0.00032865,2]
[367077873,1750651838600,-500.0,0.00032865,2]
[367077875,1750651838609,-187.91705352,0.00032865,2]
[367077877,1750651838619,-500.0,0.00032865,2]
[367077879,1750651838629,-500.0,0.00032865,2]
[367077881,1750651838638,-500.0,0.00032865,2]
[367077883,1750651838647,-500.0,0.00032865,2]
[367077885,1750651838656,-500.0,0.00032865,2]
[367077887,1750651838666,-220.0,0.00032865,2]
[367077889,1750651838675,-500.0,0.00032865,2]
[367077891,1750651838684,-500.0,0.00032865,2]
[367077893,1750651838694,-500.0,0.00032865,2]
[367077895,1750651838704,-500.0,0.00032865,2]
[367077897,1750651838713,-500.0,0.00032865,2]
[367077899,1750651838723,-500.0,0.00032865,2]
[367077901,1750651838732,-500.0,0.00032865,2]
[367077903,1750651838742,-500.0,0.00032865,2]
[367077905,1750651838751,-500.0,0.00032865,2]
[367077907,1750651838761,-500.0,0.00032865,2]
[367077909,1750651838770,-500.0,0.00032865,2]
[367077911,1750651838779,-500.0,0.00032865,2]
[367077913,1750651838790,-500.0,0.00032865,2]
[367077915,1750651838799,-500.0,0.00032865,2]
[367077917,1750651838808,-500.0,0.00032865,2]
[367077919,1750651838817,-500.0,0.00032865,2]
[367077921,1750651838826,-500.0,0.00032865,2]
[367077923,1750651838835,-372.4307114,0.00032865,2]
[367077924,1750651838844,-500.0,0.00032865,2]
[367077926,1750651838854,-293.91976399,0.00032865,2]
[367077928,1750651838863,-500.0,0.00032865,2]
[367077931,1750651838873,-500.0,0.00032865,2]
[367077933,1750651838882,-241.73632409,0.00032865,2]
[367077934,1750651838892,-500.0,0.00032865,2]
[367077936,1750651838902,-500.0,0.00032865,2]
[367077939,1750651838911,-173.157,0.00032865,7]
[367077940,1750651838921,-519806.278134,0.00032866,2]
[367077942,1750651838930,-473544.080946,0.00032866,2]
[367077944,1750651838939,-154.11890497,0.00032866,2]
[367077946,1750651838949,-150.82,0.00032866,2]
[367077948,1750651838958,-150.82,0.00032866,2]
[367077950,1750651838968,-155.2,0.00032866,2]
[367077952,1750651838978,-500.55082979,0.00032873,5]
[367077954,1750651838987,-500.0,0.00032873,5]
[367077957,1750651838996,-500.0,0.00032873,5]
[367077958,1750651839006,-500.0,0.00032873,5]
[367077961,1750651839015,-500.0,0.00032873,5]
[367077962,1750651839025,-502.38630156,0.00032873,5]
[367077965,1750651839034,-502.01101058,0.00032873,5]
[367077967,1750651839043,-500.0,0.00032873,5]
[367077969,1750651839054,-159.88133902,0.00032873,5]
[367077971,1750651839065,-502.15378253,0.00032873,5]
[367077973,1750651839074,-500.0,0.00032873,5]
[367077975,1750651839083,-1000.0,0.00032873,7]
[367077977,1750651839092,-1000.0,0.00032873,7]
[367077979,1750651839102,-520.0,0.00032873,7]
[367077981,1750651839111,-155.224,0.00032875,2]
[367077983,1750651839120,-300.0,0.00032875,10]
[367077985,1750651839131,-639.38300335,0.00032875,10]
[367077987,1750651839140,-150.0,0.00032875,3]
[367077989,1750651839149,-300.0,0.00032875,10]
[367077991,1750651839158,-500.0,0.00032875,2]
[367077992,1750651839167,-342.46417721,0.00032875,2]
[367077994,1750651839176,-575.0193663,0.00032875,2]
[367077997,1750651839185,-500.0,0.00032875,2]
[367077999,1750651839195,-176.13467643,0.00032875,2]
[367078001,1750651839204,-500.0,0.00032875,2]
[367078003,1750651839213,-500.0,0.00032875,2]
[367078005,1750651839223,-500.0,0.00032875,2]
[367078007,1750651839232,-292.2439831,0.00032875,2]
[367078009,1750651839241,-500.0,0.00032875,2]
[367078011,1750651839250,-500.0,0.00032875,2]
[367078013,1750651839260,-500.0,0.00032875,2]
[367078015,1750651839269,-500.0,0.00032875,2]
[367078017,1750651839278,-500.0,0.00032875,2]
[367078019,1750651839287,-500.0,0.00032875,2]
[367078021,1750651839296,-500.0,0.00032875,2]
[367078023,1750651839306,-500.0,0.00032875,2]
[367078025,1750651839314,-500.0,0.00032875,2]
[367078027,1750651839323,-500.0,0.00032875,2]
[367078029,1750651839333,-500.0,0.00032875,2]
[367078031,1750651839342,-500.0,0.00032875,2]
[367078033,1750651839351,-500.0,0.00032875,2]
[367078035,1750651839360,-490.0,0.00032876,7]
[367078037,1750651839370,-490.67111829,0.00032876,7]
[367078039,1750651839379,-500.0,0.00032876,7]
[367078041,1750651839389,-500.0,0.00032876,7]
[367078043,1750651839398,-500.0,0.00032876,7]
[367078045,1750651839407,-500.0,0.00032876,7]
[367078047,1750651839416,-500.0,0.00032876,7]
[367078049,1750651839426,-500.0,0.00032876,7]
[367078051,1750651839435,-490.0,0.00032876,7]
[367078053,1750651839444,-487.16405036,0.00032876,7]
[367078054,1750651839453,-490.0,0.00032876,7]
[367078057,1750651839463,-458.67154645,0.00032876,7]
[367078058,1750651839471,-490.0,0.00032876,7]
[367078060,1750651839480,-490.0,0.00032876,2]
[367078062,1750651839490,-164.978306,0.00032876,7]
[367078065,1750651839499,-493.04230132,0.00032876,3]
[367078067,1750651839509,-491.50660046,0.00032876,7]
[367078069,1750651839518,-500.49051434,0.00032876,7]
[367078071,1750651839528,-490.0,0.00032876,7]
[367078073,1750651839539,-1064.69,0.00032876,7]
[367078075,1750651839548,-491.28255314,0.00032876,7]
[367078077,1750651839557,-490.0,0.00032876,7]
[367078079,1750651839567,-490.0,0.00032876,7]
[367078081,1750651839576,-490.0,0.00032876,7]
[367078083,1750651839586,-497.326077,0.00032876,7]
[367078084,1750651839595,-491.3215211,0.00032876,7]
[367078086,1750651839604,-1001.34823759,0.00032876,2]
[367078088,1750651839613,-491.17326316,0.00032876,7]
[367078090,1750651839623,-490.78502001,0.00032876,7]
[367078092,1750651839632,-658.11,0.00032876,7]
[367078094,1750651839642,-302.22022922,0.00032876,7]
[367078096,1750651839651,-490.0,0.00032876,7]
[367078098,1750651839660,-490.0,0.00032876,7]
[367078100,1750651839670,-165.54556138,0.00032876,7]
[367078102,1750651839679,-279.11515349,0.00032876,7]
[367078104,1750651839688,-492.28801825,0.00032876,7]
[367078106,1750651839698,-490.0,0.00032876,7]
[367078108,1750651839707,-491.48965723,0.00032876,7]
[367078110,1750651839717,-492.90567872,0.00032876,7]
[367078112,1750651839726,-495.98860647,0.00032876,7]
[367078114,1750651839735,-491.3665211,0.00032876,7]
[367078116,1750651839745,-490.0,0.00032876,7]
[367078118,1750651839754,-490.0,0.00032876,7]
[367078120,1750651839763,-490.0,0.00032876,7]